fUSD/lending_fUSD_20260610
["ID","MTS","AMOUNT","RATE_DAILY","PERIOD"]
[424710319,1781068264000,-151.0,0.00034677,14]
[424710321,1781068264000,-801.784474,0.00034678,120]
[424710314,1781068264000,-500.0,0.00034659,60]
[424710313,1781068264000,-400.9458163,0.00034659,60]
[424710322,1781068264000,-300.0,0.00034679,10]
[424710315,1781068264000,-500.0,0.00034659,60]
[424710316,1781068264000,-500.0,0.00034659,60]
[424710317,1781068264000,-583.3172585,0.00034659,60]
[424710272,1781068264000,-150.0,0.00034607,7]
[424710300,1781068264000,-500.0,0.00034659,60]
[424710297,1781068264000,-500.0,0.00034659,60]
[424710318,1781068264000,-250.0,0.00034667,7]
[424710294,1781068264000,-200.0,0.00034659,4]
[424710298,1781068264000,-533.8377132,0.00034659,60]
[424710269,1781068264000,-3600.78,0.00034601,2]
[424710271,1781068264000,-434.0,0.00034605,2]
[424710275,1781068264000,-210.78508448,0.00034623,7]
[424710285,1781068264000,-256.2242573,0.00034658,7]
[424710286,1781068264000,-150.5615327,0.00034658,7]
[424710278,1781068264000,-159.78933284,0.0003465,2]
[424710277,1781068264000,-642.84082604,0.00034623,7]
[424710279,1781068264000,-2000.0,0.0003465,57]
[424710281,1781068264000,-2000.0,0.0003465,57]
[424710280,1781068264000,-2000.0,0.0003465,57]
[424710276,1781068264000,-156.34890899,0.00034623,7]
[424710270,1781068264000,-434.0,0.00034601,2]
[424710287,1781068264000,-210.78508448,0.00034658,7]
[424710282,1781068264000,-2000.0,0.0003465,57]
[424710283,1781068264000,-155.55734656,0.00034658,7]
[424710289,1781068264000,-150.0,0.00034658,7]
[424710292,1781068264000,-156.34890899,0.00034658,7]
[424710291,1781068264000,-151.65662725,0.00034658,7]
[424710288,1781068264000,-150.0,0.00034658,7]
[424710293,1781068264000,-642.84082604,0.00034658,7]
[424710295,1781068264000,-206.3267069,0.00034659,60]
[424710290,1781068264000,-190.96821533,0.00034658,7]
[424710296,1781068264000,-763.6008281,0.00034659,60]
[424710284,1781068264000,-257.15629635,0.00034658,7]
[424710367,1781068265000,-22019.24284124,0.0003479,10]
[424710354,1781068265000,-236.0,0.00034723,2]
[424710352,1781068265000,-200.0,0.00034719,10]
[424710355,1781068265000,-25000.0,0.00034728,10]
[424710356,1781068265000,-434.0,0.0003473,2]
[424710353,1781068265000,-25000.0,0.0003472,10]
[424710357,1781068265000,-350.0,0.00034734,4]
[424710349,1781068265000,-1000.0,0.000347,120]
[424710351,1781068265000,-230.10122146,0.00034701,60]
[424710369,1781068265000,-13696.00327522,0.0003479,10]
[424710365,1781068265000,-25000.0,0.00034781,10]
[424710358,1781068265000,-25000.0,0.00034737,10]
[424710359,1781068265000,-434.0,0.00034738,2]
[424710360,1781068265000,-434.0,0.00034741,2]
[424710362,1781068265000,-25000.0,0.00034755,10]
[424710363,1781068265000,-25000.0,0.00034764,10]
[424710361,1781068265000,-25000.0,0.00034746,10]
[424710366,1781068265000,-1415.65940892,0.00034783,2]
[424710364,1781068265000,-25000.0,0.00034772,10]
[424710370,1781068265000,-434.0,0.00034792,2]
[424710348,1781068265000,-1000.0,0.000347,120]
[424710368,1781068265000,-25000.0,0.0003479,10]
[424710350,1781068265000,-1000.0,0.000347,120]
[424710333,1781068265000,-151.0,0.0003468,7]
[424710345,1781068265000,-1000.0,0.000347,120]
[424710372,1781068265000,-200.0,0.000348,13]
[424710323,1781068265000,-300.0,0.00034679,10]
[424710324,1781068265000,-666.0,0.00034679,30]
[424710325,1781068265000,-300.0,0.00034679,10]
[424710326,1781068265000,-2573863.23588071,0.0003468,30]
[424710334,1781068265000,-151.0,0.0003468,7]
[424710335,1781068265000,-151.0,0.0003468,7]
[424710328,1781068265000,-151.0,0.0003468,7]
[424710332,1781068265000,-355.432177,0.0003468,7]
[424710327,1781068265000,-2324.0,0.0003468,11]
[424710330,1781068265000,-355.432168,0.0003468,7]
[424710329,1781068265000,-355.432168,0.0003468,7]
[424710331,1781068265000,-355.432168,0.0003468,7]
[424710337,1781068265000,-300.0,0.00034688,10]
[424710336,1781068265000,-300.0,0.00034688,10]
[424710338,1781068265000,-666.0,0.00034688,30]
[424710341,1781068265000,-300.0,0.00034697,10]
[424710339,1781068265000,-300.0,0.00034688,10]
[424710343,1781068265000,-306.54912573,0.00034699,10]
[424710344,1781068265000,-434.0,0.000347,2]
[424710340,1781068265000,-300.0,0.00034696,10]
[424710346,1781068265000,-1000.0,0.000347,120]
[424710342,1781068265000,-300.0,0.00034698,10]
[424710347,1781068265000,-1000.0,0.000347,120]
[424710371,1781068265000,-1500.0,0.00034795,2]
[424710377,1781068265000,-151.0,0.00034845,2]
[424710374,1781068265000,-434.0,0.00034815,2]
[424710403,1781068265000,-800.0,0.00034908,13]
[424710407,1781068265000,-800.0,0.00034908,13]
[424710404,1781068265000,-800.0,0.00034908,13]
[424710410,1781068265000,-800.0,0.00034908,13]
[424710405,1781068265000,-800.0,0.00034908,13]
[424710408,1781068265000,-800.0,0.00034908,13]
[424710406,1781068265000,-800.0,0.00034908,13]
[424710409,1781068265000,-800.0,0.00034908,13]
[424710412,1781068265000,-10000.0,0.00034932,120]
[424710411,1781068265000,-183.79231054,0.00034909,30]
[424710401,1781068265000,-2230.3428,0.00034908,2]
[424710413,1781068265000,-256.001198,0.00034947,30]
[424710418,1781068265000,-809.432017,0.00034978,120]
[424710416,1781068265000,-76412.18,0.00034963,9]
[424710417,1781068265000,-235993.95,0.00034963,9]
[424710419,1781068265000,-1000.0,0.0003498,120]
[424710420,1781068265000,-1000.0,0.0003498,120]
[424710421,1781068265000,-1000.0,0.0003498,120]
[424710423,1781068265000,-256.001198,0.00034986,30]
[424710424,1781068265000,-500.0,0.00034986,30]
[424710422,1781068265000,-1000.0,0.0003498,120]
[424710375,1781068265000,-183.79231054,0.00034831,30]
[424710414,1781068265000,-500.0,0.00034947,30]
[424710402,1781068265000,-6591.6026,0.00034908,2]
[424710415,1781068265000,-183.79231054,0.00034948,30]
[424710400,1781068265000,-2168.8476,0.00034908,2]
[424710373,1781068265000,-434.0,0.00034808,2]
[424710399,1781068265000,-1500.0,0.000349,7]
[424710378,1781068265000,-668.65185756,0.00034845,2]
[424710379,1781068265000,-833.92535152,0.00034845,2]
[424710376,1781068265000,-155.37053571,0.00034841,2]
[424710380,1781068265000,-1001.0,0.00034849,120]
[424710381,1781068265000,-250.114995,0.0003485,120]
[424710386,1781068265000,-1389.8740352,0.0003486,2]
[424710385,1781068265000,-1248.05564768,0.0003486,2]
[424710382,1781068265000,-1245.82379241,0.0003486,2]
[424710387,1781068265000,-1214.89970359,0.0003486,2]
[424710383,1781068265000,-1236.99341218,0.0003486,2]
[424710389,1781068265000,-1643.03464174,0.00034879,2]
[424710388,1781068265000,-183.79231054,0.0003487,30]
[424710396,1781068265000,-500.0,0.00034879,30]
[424710390,1781068265000,-1399.73755416,0.00034879,2]
[424710398,1781068265000,-166.0,0.0003488,60]
[424710395,1781068265000,-256.00119808,0.00034879,30]
[424710394,1781068265000,-2028.9495135,0.00034879,2]
[424710397,1781068265000,-163.0,0.0003488,60]
[424710392,1781068265000,-1925.21310183,0.00034879,2]
[424710391,1781068265000,-1317.20859672,0.00034879,2]
[424710384,1781068265000,-1356.73561329,0.0003486,2]
[424710393,1781068265000,-2178.19311604,0.00034879,2]
[424710464,1781068266000,-849.04036834,0.00035,120]
[424710456,1781068266000,-276.04115262,0.00035,120]
[424710454,1781068266000,-297750.72149098,0.00035,4]
[424710455,1781068266000,-2571.37850597,0.00035,2]
[424710463,1781068266000,-1646.64035274,0.00035,7]
[424710457,1781068266000,-2799.958826,0.00035,10]
[424710459,1781068266000,-44466.17,0.00035,15]
[424710461,1781068266000,-274.31032536,0.00035,120]
[424710462,1781068266000,-6559.90403245,0.00035,2]
[424710458,1781068266000,-526.0,0.00035,5]
[424710460,1781068266000,-150.0,0.00035,60]
[424710467,1781068266000,-150.0,0.00035,7]
[424710475,1781068266000,-1250.0,0.00035,120]
[424710466,1781068266000,-3179.59,0.00035,60]
[424710469,1781068266000,-156.7,0.00035,30]
[424710470,1781068266000,-22357.83,0.00035,2]
[424710465,1781068266000,-2018.01328851,0.00035,120]
[424710473,1781068266000,-1250.0,0.00035,120]
[424710472,1781068266000,-1250.0,0.00035,120]
[424710471,1781068266000,-10456.2798652,0.00035,120]
[424710474,1781068266000,-1250.0,0.00035,120]
[424710476,1781068266000,-1250.0,0.00035,120]
[424710477,1781068266000,-1250.0,0.00035,120]
[424710478,1781068266000,-1250.0,0.00035,120]
[424710480,1781068266000,-151.0,0.00035,7]
[424710468,1781068266000,-174.29170218,0.00035,7]
[424710450,1781068266000,-156631.73021032,0.00035,7]
[424710430,1781068266000,-256.001198,0.00034999,30]
[424710453,1781068266000,-789.82470548,0.00035,30]
[424710428,1781068266000,-151.0,0.00034997,14]
[424710426,1781068266000,-6075.0,0.00034994,2]
[424710431,1781068266000,-500.0,0.00034999,36]
[424710425,1781068266000,-183.79231054,0.00034987,30]
[424710429,1781068266000,-256.001198,0.00034999,36]
[424710427,1781068266000,-933.0,0.00034994,2]
[424710432,1781068266000,-500.0,0.00034999,30]
[424710434,1781068266000,-164.70006234,0.00035,14]
[424710433,1781068266000,-150.0,0.00034999,120]
[424710437,1781068266000,-164.70006234,0.00035,14]
[424710436,1781068266000,-164.70006234,0.00035,14]
[424710439,1781068266000,-164.70006234,0.00035,14]
[424710438,1781068266000,-164.70006234,0.00035,14]
[424710440,1781068266000,-164.70006233,0.00035,14]
[424710435,1781068266000,-164.70006234,0.00035,14]
[424710441,1781068266000,-164.70006233,0.00035,14]
[424710442,1781068266000,-904.85024102,0.00035,2]
[424710444,1781068266000,-78649.54171106,0.00035,7]
[424710445,1781068266000,-1003.78155081,0.00035,2]
[424710443,1781068266000,-78649.54171106,0.00035,7]
[424710451,1781068266000,-506.0,0.00035,120]
[424710449,1781068266000,-156631.73021032,0.00035,7]
[424710447,1781068266000,-500.0,0.00035,60]
[424710448,1781068266000,-246.04,0.00035,2]
[424710452,1781068266000,-389.80854146,0.00035,30]
[424710446,1781068266000,-500.0,0.00035,60]
[424710479,1781068266000,-921.0,0.00035,120]
[424710503,1781068266000,-1000.0,0.00035,120]
[424710484,1781068266000,-775.9283879,0.00035,2]
[424710515,1781068266000,-686.0,0.00035147,10]
[424710518,1781068266000,-183.79231054,0.00035183,30]
[424710512,1781068266000,-1145.33,0.00035118,30]
[424710517,1781068266000,-6591.6026,0.00035158,2]
[424710519,1781068266000,-334.0,0.00035201,30]
[424710513,1781068266000,-183.79231054,0.00035144,30]
[424710516,1781068266000,-2168.8476,0.00035158,2]
[424710514,1781068266000,-336.79,0.00035144,7]
[424710523,1781068266000,-314.0,0.00035201,30]
[424710525,1781068266000,-367.0,0.00035201,30]
[424710531,1781068266000,-183.79231054,0.00035222,30]
[424710528,1781068266000,-1000.0,0.00035202,2]
[424710526,1781068266000,-633.0,0.00035201,30]
[424710533,1781068266000,-1943.88,0.00035254,14]
[424710527,1781068266000,-172.0,0.00035201,30]
[424710534,1781068266000,-371.0,0.0003526,30]
[424710529,1781068266000,-1027.20331807,0.00035202,2]
[424710524,1781068266000,-1655.0,0.00035201,30]
[424710535,1781068266000,-468.0,0.0003526,30]
[424710530,1781068266000,-500.0,0.00035205,2]
[424710532,1781068266000,-812.762863,0.00035242,60]
[424710537,1781068266000,-1099.0,0.0003526,30]
[424710536,1781068266000,-354.0,0.0003526,30]
[424710538,1781068266000,-1897.0,0.0003526,30]
[424710482,1781068266000,-2000.0,0.00035,7]
[424710521,1781068266000,-1011.0,0.00035201,30]
[424710522,1781068266000,-396.0,0.00035201,30]
[424710520,1781068266000,-283.0,0.00035201,30]
[424710510,1781068266000,-183.79231054,0.00035105,30]
[424710483,1781068266000,-1130.0,0.00035,7]
[424710481,1781068266000,-303.0,0.00035,30]
[424710486,1781068266000,-2000.0,0.00035,61]
[424710488,1781068266000,-300.0,0.00035,120]
[424710491,1781068266000,-3000.0,0.00035,3]
[424710485,1781068266000,-775.9283879,0.00035,2]
[424710511,1781068266000,-158.21665474,0.00035114,2]
[424710493,1781068266000,-700.5236332,0.00035,5]
[424710490,1781068266000,-350.0,0.00035,60]
[424710494,1781068266000,-150.0,0.00035,60]
[424710489,1781068266000,-200.0,0.00035,120]
[424710492,1781068266000,-151.93126584,0.00035,30]
[424710495,1781068266000,-150.0,0.00035,120]
[424710487,1781068266000,-2000.0,0.00035,61]
[424710496,1781068266000,-200000.0,0.00035,15]
[424710497,1781068266000,-2999.99999901,0.00035,7]
[424710504,1781068266000,-183.79231054,0.00035026,30]
[424710500,1781068266000,-825.42172903,0.00035,3]
[424710506,1781068266000,-6591.6026,0.00035033,2]
[424710505,1781068266000,-394.94,0.0003503,62]
[424710502,1781068266000,-2290.0,0.00035,2]
[424710501,1781068266000,-410.0,0.00035,120]
[424710499,1781068266000,-3000.0,0.00035,7]
[424710509,1781068266000,-183.79231054,0.00035065,30]
[424710508,1781068266000,-305.76714724,0.00035058,120]
[424710507,1781068266000,-198.7486457,0.00035058,120]
[424710498,1781068266000,-537970.56045752,0.00035,7]
[424710539,1781068267000,-183.79231054,0.00035261,30]
[424710556,1781068267000,-183.79231054,0.00035339,30]
[424710554,1781068267000,-183.79231054,0.000353,30]
[424710550,1781068267000,-937.44,0.00035292,30]
[424710549,1781068267000,-150.0,0.00035285,2]
[424710551,1781068267000,-986.99,0.00035292,30]
[424710540,1781068267000,-3556.0,0.00035263,2]
[424710544,1781068267000,-10713.82,0.00035279,9]
[424710545,1781068267000,-808.049984,0.00035279,120]
[424710542,1781068267000,-1274.0,0.00035263,2]
[424710546,1781068267000,-6591.6026,0.00035282,2]
[424710541,1781068267000,-382.0,0.00035263,2]
[424710547,1781068267000,-150.0,0.00035285,2]
[424710557,1781068267000,-300.0,0.00035343,30]
[424710543,1781068267000,-1227.0,0.00035263,2]
[424710548,1781068267000,-150.0,0.00035285,2]
[424710561,1781068267000,-624.0,0.00035375,3]
[424710552,1781068267000,-500.0,0.000353,120]
[424710553,1781068267000,-2500.0,0.000353,14]
[424710570,1781068267000,-151.0,0.00035397,14]
[424710568,1781068267000,-151.0,0.00035397,14]
[424710567,1781068267000,-421.0,0.00035389,3]
[424710569,1781068267000,-151.0,0.00035397,14]
[424710563,1781068267000,-151.0,0.0003538,120]
[424710565,1781068267000,-513.0,0.00035387,3]
[424710566,1781068267000,-158.21665474,0.00035388,2]
[424710571,1781068267000,-713850.68127918,0.000354,30]
[424710560,1781068267000,-760.0,0.00035352,3]
[424710564,1781068267000,-151.0,0.0003538,120]
[424710559,1781068267000,-2230.3428,0.00035345,2]
[424710558,1781068267000,-150.0,0.00035343,2]
[424710555,1781068267000,-350.0,0.00035317,4]
[424710562,1781068267000,-183.79231054,0.00035378,30]
[424710582,1781068268000,-200.0,0.0002342,2]
[424710572,1781068268000,-200.0,0.0002419,2]
[424710573,1781068268000,-195.24465621,0.000354,30]
[424710575,1781068268000,-216.685427,0.0003,7]
[424710576,1781068268000,-4863.4490575,0.000354,30]
[424710577,1781068268000,-1780.4253704,0.00013403,2]
[424710578,1781068268000,-1780.4253704,0.00014136,2]
[424710579,1781068268000,-200.0,0.00021918,2]
[424710574,1781068268000,-1143.04519266,0.000354,30]
[424710583,1781068268000,-216.685427,0.00027397,2]
[424710589,1781068268000,-546.4750161,0.00013599,2]
[424710588,1781068268000,-318.46,0.00013599,2]
[424710587,1781068268000,-10464.0075512,0.000354,30]
[424710581,1781068268000,-200.0,0.00022649,2]
[424710585,1781068268000,-216.685427,0.00027397,2]
[424710580,1781068268000,-200.0,0.00021918,2]
[424710584,1781068268000,-216.685427,0.00027397,2]
[424710586,1781068268000,-216.685427,0.00027397,2]
[424710593,1781068269000,-2214.01080826,0.00012297,2]
[424710592,1781068269000,-629.50507353,0.00012297,2]
[424710590,1781068269000,-2076.55,0.00012297,2]
[424710591,1781068269000,-22056.99304672,0.00012297,2]
[424710594,1781068306000,2000.0,0.00027771,120]
[424710596,1781068462000,473.03,0.00028465,120]
[424710595,1781068462000,473.03,0.00025877,120]
[424710603,1781068970000,160.52383787,0.0003013,120]
[424710605,1781069235000,-151.0,0.00012597,10]
[424710606,1781069236000,-151.0,0.00012597,10]
[424710607,1781069238000,-151.0,0.00012597,10]
[424710630,1781069431000,-293.92046623,0.00011291,2]
[424710625,1781069431000,-271.78772236,0.000107,2]
[424710624,1781069431000,-160.0,0.00010025,2]
[424710627,1781069431000,-295.03,0.00011254,2]
[424710623,1781069431000,-150.0,0.00010009,2]
[424710626,1781069431000,-166.66,0.00011248,2]
[424710628,1781069431000,-150.0,0.00011291,2]
[424710621,1781069431000,-5844.4496971,0.0001,2]
[424710629,1781069431000,-725.80689051,0.00011291,2]
[424710632,1781069432000,-240.65,0.00011345,3]
[424710636,1781069432000,-166.66,0.00011959,2]
[424710633,1781069432000,-258.42519712,0.000114,2]
[424710631,1781069432000,-7466.83264326,0.00011291,2]
[424710635,1781069432000,-166.66,0.00011722,2]
[424710637,1781069432000,-37976.73248402,0.0001199,2]
[424710640,1781069432000,-284.90022488,0.0001199,2]
[424710634,1781069432000,-166.66,0.00011485,2]
[424710638,1781069432000,-150511.70445275,0.0001199,2]
[424710639,1781069432000,-373.1708855,0.0001199,2]
[424710664,1781069438000,-33063.05969359,0.00012095,2]
[424710660,1781069438000,-22320.3999,0.0001209,2]
[424710663,1781069438000,-230.36,0.0001209,2]
[424710665,1781069438000,-500.0,0.00012189,2]
[424710666,1781069438000,-500.0,0.00012189,2]
[424710671,1781069438000,-500.0,0.00012296,2]
[424710670,1781069438000,-500.0,0.00012296,2]
[424710672,1781069438000,-500.0,0.00012296,2]
[424710676,1781069438000,-500.0,0.00012296,2]
[424710673,1781069438000,-532.12520611,0.00012296,2]
[424710679,1781069438000,-500.0,0.00012296,2]
[424710681,1781069438000,-500.0,0.00012296,2]
[424710674,1781069438000,-500.0,0.00012296,2]
[424710675,1781069438000,-500.0,0.00012296,2]
[424710661,1781069438000,-2500.0,0.0001209,2]
[424710669,1781069438000,-500.0,0.00012296,2]
[424710662,1781069438000,-3383.104,0.0001209,2]
[424710677,1781069438000,-500.0,0.00012296,2]
[424710647,1781069438000,-143.80598964,0.0001199,2]
[424710646,1781069438000,-229.97542671,0.00011955,2]
[424710648,1781069438000,-1072.01525257,0.0001199,2]
[424710650,1781069438000,-978.70596519,0.0001199,2]
[424710649,1781069438000,-553.36,0.0001199,2]
[424710652,1781069438000,-374.68915625,0.0001199,2]
[424710668,1781069438000,-160.0,0.00012243,2]
[424710653,1781069438000,-1195.63937521,0.0001199,2]
[424710655,1781069438000,-330114.94373838,0.0001199,2]
[424710658,1781069438000,-150.0,0.00012089,2]
[424710657,1781069438000,-4194.35,0.00012055,2]
[424710656,1781069438000,-1500000.0,0.00011995,2]
[424710659,1781069438000,-500.0,0.00012089,2]
[424710667,1781069438000,-166.66,0.00012195,2]
[424710651,1781069438000,-1218.29858037,0.0001199,2]
[424710678,1781069438000,-500.0,0.00012296,2]
[424710654,1781069438000,-360.90989524,0.0001199,2]
[424710684,1781069438000,-500.0,0.00012296,2]
[424710704,1781069438000,-500.0,0.00012597,8]
[424710701,1781069438000,-500.0,0.00012597,5]
[424710698,1781069438000,-500.0,0.00012597,2]
[424710696,1781069438000,-166.66,0.00012432,2]
[424710707,1781069438000,-33063.05969352,0.00012718,2]
[424710715,1781069438000,-33063.05969352,0.00013653,2]
[424710714,1781069438000,-1000.0,0.000135,2]
[424710706,1781069438000,-47.0,0.00012597,10]
[424710713,1781069438000,-152.0,0.00013401,2]
[424710708,1781069438000,-213.77,0.00012909,2]
[424710716,1781069438000,-574.57860626,0.00013698,2]
[424710712,1781069438000,-33063.05969352,0.00013342,2]
[424710711,1781069438000,-500.0,0.00013298,11]
[424710710,1781069438000,-250.0,0.00013213,2]
[424710680,1781069438000,-500.0,0.00012296,2]
[424710702,1781069438000,-500.0,0.00012597,6]
[424710695,1781069438000,-33063.05969352,0.00012407,2]
[424710709,1781069438000,-33063.05969352,0.0001303,2]
[424710699,1781069438000,-500.0,0.00012597,3]
[424710703,1781069438000,-500.0,0.00012597,7]
[424710685,1781069438000,-500.0,0.00012296,2]
[424710689,1781069438000,-500.0,0.00012296,2]
[424710687,1781069438000,-500.0,0.00012296,2]
[424710688,1781069438000,-500.0,0.00012296,2]
[424710690,1781069438000,-2000.0,0.00012296,2]
[424710683,1781069438000,-500.0,0.00012296,2]
[424710686,1781069438000,-500.0,0.00012296,2]
[424710693,1781069438000,-2000.0,0.00012297,2]
[424710700,1781069438000,-500.0,0.00012597,4]
[424710691,1781069438000,-250.0,0.00012296,2]
[424710697,1781069438000,-297.35683068,0.000125,2]
[424710682,1781069438000,-500.0,0.00012296,2]
[424710705,1781069438000,-500.0,0.00012597,9]
[424710692,1781069438000,-6297.75977149,0.00012297,2]
[424710694,1781069438000,-500.0,0.00012406,2]
[424710761,1781069439000,-500.0,0.00013699,2]
[424710750,1781069439000,-500.0,0.00013699,2]
[424710752,1781069439000,-212.473015,0.00013699,2]
[424710764,1781069439000,-500.0,0.00013699,2]
[424710753,1781069439000,-500.0,0.00013699,2]
[424710765,1781069439000,-500.0,0.00013699,2]
[424710755,1781069439000,-500.0,0.00013699,2]
[424710756,1781069439000,-500.0,0.00013699,2]
[424710758,1781069439000,-500.0,0.00013699,2]
[424710757,1781069439000,-500.0,0.00013699,2]
[424710759,1781069439000,-500.0,0.00013699,2]
[424710748,1781069439000,-500.0,0.00013699,2]
[424710754,1781069439000,-500.0,0.00013699,2]
[424710772,1781069439000,-229.16366834,0.00013699,2]
[424710762,1781069439000,-500.0,0.00013699,2]
[424710763,1781069439000,-500.0,0.00013699,2]
[424710769,1781069439000,-500.0,0.00013699,2]
[424710766,1781069439000,-500.0,0.00013699,2]
[424710768,1781069439000,-500.0,0.00013699,2]
[424710774,1781069439000,-500.0,0.00013699,2]
[424710770,1781069439000,-500.0,0.00013699,2]
[424710771,1781069439000,-500.0,0.00013699,2]
[424710767,1781069439000,-500.0,0.00013699,2]
[424710777,1781069439000,-500.0,0.00013699,2]
[424710776,1781069439000,-500.0,0.00013699,2]
[424710775,1781069439000,-500.0,0.00013699,2]
[424710747,1781069439000,-500.0,0.00013699,2]
[424710760,1781069439000,-500.0,0.00013699,2]
[424710749,1781069439000,-500.0,0.00013699,2]
[424710740,1781069439000,-500.0,0.00013699,2]
[424710746,1781069439000,-500.0,0.00013699,2]
[424710717,1781069439000,-500.0,0.00013698,12]
[424710718,1781069439000,-500.0,0.00013698,2]
[424710721,1781069439000,-500.0,0.00013698,2]
[424710725,1781069439000,-500.0,0.00013698,2]
[424710722,1781069439000,-567.85831353,0.00013698,2]
[424710723,1781069439000,-500.0,0.00013698,2]
[424710778,1781069439000,-500.0,0.00013699,2]
[424710724,1781069439000,-500.0,0.00013698,2]
[424710726,1781069439000,-183.96,0.00013698,2]
[424710727,1781069439000,-500.0,0.00013698,2]
[424710728,1781069439000,-500.0,0.00013698,2]
[424710719,1781069439000,-500.0,0.00013698,2]
[424710730,1781069439000,-500.0,0.00013698,2]
[424710744,1781069439000,-500.0,0.00013699,2]
[424710729,1781069439000,-500.0,0.00013698,2]
[424710731,1781069439000,-500.0,0.00013698,2]
[424710736,1781069439000,-500.0,0.00013699,2]
[424710733,1781069439000,-316.16211611,0.00013698,2]
[424710738,1781069439000,-500.0,0.00013699,2]
[424710732,1781069439000,-500.0,0.00013698,2]
[424710734,1781069439000,-200.0,0.00013699,2]
[424710739,1781069439000,-500.0,0.00013699,2]
[424710737,1781069439000,-500.0,0.00013699,2]
[424710735,1781069439000,-500.0,0.00013699,2]
[424710742,1781069439000,-500.0,0.00013699,2]
[424710745,1781069439000,-500.0,0.00013699,2]
[424710743,1781069439000,-500.0,0.00013699,2]
[424710751,1781069439000,-500.0,0.00013699,2]
[424710741,1781069439000,-500.0,0.00013699,2]
[424710773,1781069439000,-500.0,0.00013699,2]
[424710720,1781069439000,-500.0,0.00013698,2]
[424710791,1781069439000,-1500.0,0.00014568,2]
[424710810,1781069439000,-500.0,0.0001489,2]
[424710807,1781069439000,-5800.0,0.00014874,2]
[424710808,1781069439000,-25000.0,0.00014882,3]
[424710809,1781069439000,-5800.0,0.00014883,2]
[424710811,1781069439000,-25000.0,0.00014891,3]
[424710819,1781069439000,-291.61486188,0.00014908,2]
[424710821,1781069439000,-500.0,0.00014997,16]
[424710823,1781069439000,-500.0,0.00014997,18]
[424710824,1781069439000,-500.0,0.00014997,19]
[424710820,1781069439000,-117918.73704676,0.00014989,2]
[424710825,1781069439000,-500.0,0.00014997,20]
[424710827,1781069439000,-500.0,0.00014997,21]
[424710822,1781069439000,-500.0,0.00014997,17]
[424710805,1781069439000,-5800.0,0.00014866,2]
[424710826,1781069439000,-500.0,0.00014997,21]
[424710830,1781069439000,-500.0,0.00014997,21]
[424710832,1781069439000,-500.0,0.00014997,21]
[424710831,1781069439000,-500.0,0.00014997,21]
[424710834,1781069439000,-500.0,0.00014997,21]
[424710833,1781069439000,-500.0,0.00014997,21]
[424710837,1781069439000,-500.0,0.00014997,21]
[424710838,1781069439000,-500.0,0.00014997,21]
[424710836,1781069439000,-500.0,0.00014997,21]
[424710835,1781069439000,-500.0,0.00014997,21]
[424710841,1781069439000,-500.0,0.00014997,21]
[424710839,1781069439000,-500.0,0.00014997,21]
[424710840,1781069439000,-500.0,0.00014997,21]
[424710790,1781069439000,-356.08507408,0.00014519,2]
[424710829,1781069439000,-500.0,0.00014997,21]
[424710817,1781069439000,-10807.36198924,0.000149,2]
[424710828,1781069439000,-500.0,0.00014997,21]